Cogmind - Beta 16 @@@ ROGUE MODE // 2025.11.24 @ 21:19:46 Player: H3-MLN Result: Destroyed by GC-NLM(R) with Subdweller Beam Cannon Performance ------------- Evolutions (0) 0 Regions Visited (3) 600 Robots Destroyed (45) 225 Value Destroyed (953) 953 Prototype IDs (14) 280 Alien Tech Used (0) 0 Bonus (25) 25 TOTAL SCORE: 2083 Bonus ------- Follower Combat Kills 90 Friendly Fire -65 Cogmind --------- Core Integrity 0/250 Matter 296/300 Energy 200/200 System Corruption 0% Temperature Cool (9) Movement Rolling (130) Ox2 Location -10/Subcaves Parts ------- > --- POWER (1) -------- Subdweller Power Source > --- PROPULSION (2) --- Light Treads Subdweller Monowheel > --- UTILITY (2) ------ Improved Heat Sink High-capacity Storage Unit > --- WEAPON (2) ------- Subdweller Beam Cannon Subdweller Machine Gun > --- INVENTORY (20) --- Meta Core Light Treads Subdweller Monowheel Flight Unit Flight Unit Flight Unit Flight Unit Flight Unit High-capacity Matter Pod (200) High-capacity Matter Pod (200) Transport Network Coupler Scrap Shield Makeshift Hacking Suite Subdweller Beam Cannon Subdweller Machine Gun Shock Bomb Launcher Subdweller Shrapnel Launcher Improved Datajack Makeshift Hammer Peak State ------------ > --- POWER ------------ Light Angular Momentum Engine > --- PROPULSION ------- Light Treads Subdweller Monowheel > --- UTILITY ---------- High-capacity Storage Unit Light Armor Plating > --- WEAPON ----------- Heavy Particle Cannon Flak Cannon > --- INVENTORY -------- Light Treads Light Treads Wheel Flight Unit Flight Unit Flight Unit Flight Unit Flight Unit High-capacity Matter Pod High-capacity Matter Pod Transport Network Coupler Advanced Targeting Computer Scrap Shield Assault Rifle Makeshift Shrapnel Gun Light Cannon Shock Bomb Launcher Improved Datajack Hammer [Rating: 19] Favorites ----------- Power Light Angular Momentum Engine Engine Light Angular Momentum Engine Propulsion Light Treads Treads Light Treads Wheel Wheel Utility High-capacity Storage Unit Device Seismic Detector Storage High-capacity Storage Unit Protection Light Armor Plating Weapon Light Cannon Energy Gun Medium Laser Energy Cannon Subdweller Beam Cannon Ballistic Gun Subdweller Machine Gun Ballistic Cannon Light Cannon Launcher Subdweller Shrapnel Launcher Build | -11 -10 -10 -10 ------- Run | Yrd Mat Min Sub Slots Evolved . | . . . . Power . | . . . . Propulsion . | . . . . Utility . | . . . . Weapon . | . . . . Parts Attached 32 | 8 3 9 12 Power 4 | 1 . 1 2 Engine 4 | 1 . 1 2 Core . | . . . . Reactor . | . . . . Propulsion 8 | 2 . 4 2 Treads 3 | 1 . 2 . Leg . | . . . . Wheel 5 | 1 . 2 2 Hover . | . . . . Flight . | . . . . Utility 6 | 3 1 1 1 Device 3 | 2 . . 1 Storage 2 | 1 1 . . Processor . | . . . . Hackware . | . . . . Protection 1 | . . 1 . Artifact . | . . . . Weapon 14 | 2 2 3 7 Energy Gun 4 | 1 1 1 1 Energy Cannon 2 | . . 1 1 Ballistic Gun 5 | 1 . . 4 Ballistic Cannon 2 | . 1 1 . Launcher 1 | . . . 1 Special Weapon . | . . . . Impact Weapon . | . . . . Slashing Weapon . | . . . . Piercing Weapon . | . . . . Special Melee Weapon . | . . . . Unidentified Prototypes . | . . . . Parts Lost 2 | . . 1 1 Power . | . . . . Propulsion 1 | . . 1 . Utility 1 | . . . 1 Weapon . | . . . . Highest Loss Streak 1 | . . 1 1 To Critical Strikes . | . . . . Average Backups 16 | 3 11 19 19 Power . | . 1 1 . Propulsion 7 | 1 6 8 7 Utility 3 | . . 3 4 Weapon 4 | . 3 5 5 Tool/Special . | . . . . Unused Backups 31 | . 2 1 28 Power 1 | . . . 1 Propulsion 10 | . 1 . 9 Utility 7 | . . 1 6 Weapon 11 | . 1 . 10 Tool/Special 2 | . . . 2 Average Slot Usage (%) 99 | . 99 99 99 Engine 13 | . 14 14 13 Treads 14 | . 14 14 14 Wheel 13 | . 14 13 14 Device 6 | . 14 3 5 Storage 14 | . 14 14 14 Protection 6 | . . 10 8 Energy Gun 8 | . 14 9 3 Energy Cannon 5 | . . 4 10 Ballistic Gun 4 | . 2 . 8 Ballistic Cannon 9 | . 11 14 4 Peak Build Rating 19 | 7 8 17 19 Average Rating 13 | 5 7 13 16 On Entrance 8 | . 7 8 17 Avg Prop Armor Cover (%) 11 | 14 12 9 11 Naked Turns . | . . . . Heaviest Build 64 | 11 49 64 64 Greatest Support 20 | 10 10 10 20 Greatest Overweight (x) 6 | 1 4 6 6 Average Overweight (x) 3 | . 2 5 2 Largest Inventory Capacity 20 | 8 20 20 20 Average Capacity 18 | 6 16 20 20 Most Carried 20 | 7 16 20 20 Average Carried 17 | 3 11 19 19 Final Capacity 20 | 8 20 20 20 Final Carried 20 | 6 16 20 20 Class Distribution -------------------- 79% | Mutant 20% | Scavenger-Mutant Dominant Class ---------------- Mutant | -10/Materials Mutant | -10/Mines Mutant | -10/Subcaves Resources | -11 -10 -10 -10 ----------- Run | Yrd Mat Min Sub Matter Collected 1196 | 291 305 349 251 Remotely . | . . . . Salvage Created 1344 | 135 412 297 500 Parts 93 | 6 25 27 35 Haulers Intercepted 2 | . 2 . . Recyclers Shooed 1 | . 1 . . Parts Field Recycled . | . . . . Retrieved Matter . | . . . . Parts Self-Destructed 16 | . . . 16 Prevented . | . . . . Parts Restored . | . . . . Kills | -11 -10 -10 -10 ------- Run | Yrd Mat Min Sub Combat Hostiles Destroyed 32 | . 9 10 13 Guns 12 | . 4 5 3 Cannons 17 | . 5 5 7 AOE 3 | . . . 3 Classes Destroyed 10 | 2 5 . 3 Worker 1 | . 1 . . Tunneler 4 | 2 . 2 . Hauler 2 | . 2 . . Recycler 2 | 1 . 1 . Turret 1 | . . . 1 Watcher 2 | . 2 . . Swarmer 14 | . 2 8 4 Grunt 12 | . 7 2 3 Artisan 2 | . . . 2 Subdweller 7 | . . . 7 Best Kill Streak 5 | 3 5 4 5 Combat Bots Only 4 | . 3 3 4 Max Kills in Single Turn 3 | 1 1 1 3 Gunslinging . | . . . . Exploded 3 | . . . 3 Melee . | . . . . Uniques/NPCs Destroyed . | . . . . Combat | -11 -10 -10 -10 -------- Run | Yrd Mat Min Sub Hostile Shots Fired 149 | . 46 45 58 Missed 54 | . 14 13 27 Hits 95 | . 32 32 31 Projectile 95 | . 32 32 31 Damage Taken 1059 | . 328 272 459 Core 256 | . 31 35 190 Absorbed by Shields . | . . . . Regen/Repaired (Parts) 53 | . 53 . . Core Remaining (%) 100 | 100 . . . Volleys Fired 139 | 11 51 34 43 Largest 2 | 2 2 2 2 Hottest 112 | 60 80 112 112 Shots Fired 259 | 22 100 68 69 Gun 141 | 22 58 26 35 Cannon 117 | . 42 42 33 Launcher 1 | . . . 1 Special . | . . . . Kinetic 133 | 11 51 34 37 Thermal 126 | 11 49 34 32 Explosive . | . . . . Electromagnetic . | . . . . Robot Hit Streak 9 | 6 9 7 9 Robot Miss Streak 7 | 2 3 7 3 Penetration Max . | . . . . Secondary Targets . | . . . . Shots Hit Robots 142 | 14 60 30 38 Core Hits 74 | 6 23 19 26 Critical Kills . | . . . . Critical Parts Destroyed . | . . . . Critical Strikes 2 | . 1 1 . Burn 1 | . 1 . . Blast 1 | . . 1 . Melee Attacks . | . . . . Impact . | . . . . Slashing . | . . . . Piercing . | . . . . Sneak Attacks . | . . . . Combat Hostiles . | . . . . Follow-up Attacks . | . . . . Damage Inflicted 2621 | 133 851 576 1061 Guns 923 | 133 397 113 280 Cannons 1569 | . 454 463 652 Explosions 129 | . . . 129 Melee . | . . . . Ramming . | . . . . Kinetic 1438 | 56 517 363 502 Thermal 1183 | 77 334 213 559 Explosive . | . . . . Electromagnetic . | . . . . Impact . | . . . . Slashing . | . . . . Piercing . | . . . . Highest Corruption . | . . . . Average Corruption . | . . . . Corruption Purged . | . . . . Corruption Blocked . | . . . . Overload Shots . | . . . . Overflow Damage . | . . . . Projectiles . | . . . . Explosions . | . . . . Melee . | . . . . Knockbacks 15 | . 2 10 3 Impact . | . . . . Kinetic 14 | . 1 10 3 Secondary 1 | . 1 . . Self-Inflicted Damage . | . . . . Shots . | . . . . Rammed . | . . . . Targets Rammed . | . . . . Kicked . | . . . . Crushed . | . . . . Highest Temperature 198 | 40 150 198 24 Average Temperature 52 | 20 47 65 11 Received Heat Transfer 330 | . 144 33 153 Siege Activations . | . . . . Martial Activations . | . . . . Shielding Activations . | . . . . Robots Disrupted . | . . . . Combat Hostiles . | . . . . Robots Corrupted . | . . . . Combat Hostiles . | . . . . Parts Fried . | . . . . Impact Corruptions . | . . . . Robots Melted . | . . . . Combat Hostiles . | . . . . Parts Melted 3 | . 1 1 1 Heat Transferred 2412 | 175 1015 481 741 Parts Sabotaged . | . . . . Parts Stolen . | . . . . Parts Stripped . | . . . . Power Chain Reactions . | . . . . Alert | -11 -10 -10 -10 ------- Run | Yrd Mat Min Sub Maximum Alert Level . | . . . . Low Security (%) 100 | 100 100 100 . Level 1 . | . . . . Level 2 . | . . . . Level 3 . | . . . . Level 4 . | . . . . Level 5 . | . . . . High Security . | . . . . Max Security . | . . . . Peak Influence 104 | 5 74 104 . Initial 1 | . . 1 . Average 18 | . 21 17 . Influence Increases 796 | 15 319 274 188 Destroy 0b10 Robot/C 540 | . 180 200 160 Destroy 0b10 Robot/NC 55 | 15 25 15 . Destroy Leader 98 | . 48 40 10 Allied During Kill 18 | . . . 18 Trap Triggered on 0b10 10 | . 10 . . Successful Hack 55 | . 55 . . Destroy Structure 5 | . 1 4 . Lose Combat Pursuer 15 | . . 15 . Influence Decreases 796 | 15 315 278 188 Entered New Map 3 | . . 3 . Time Decay 756 | 15 315 268 158 Lost Part 16 | . . 6 10 Lost Ally 21 | . . 1 20 Squads Dispatched 2 | . 1 1 . Investigation 2 | . 1 1 . Extermination . | . . . . Reinforcement . | . . . . Assault . | . . . . Garrison . | . . . . Intercept . | . . . . Searches Triggered . | . . . . Construction Impeded . | . . . . Haulers Reinforced . | . . . . Active Scanning Responses . | . . . . Cargo Convoy Interrupts . | . . . . Stealth | -11 -10 -10 -10 --------- Run | Yrd Mat Min Sub Distress Signals 1 | . 1 . . Communications Jammed . | . . . . Distress Signals . | . . . . Times Spotted 47 | . 17 10 20 Peak Tracking Total 6 | . 3 3 6 Tactical Retreats 1 | . . 1 . Traps | -11 -10 -10 -10 ------- Run | Yrd Mat Min Sub Traps Triggered 1 | . . . 1 Indirectly . | . . . . Trap Hack Attempts . | . . . . Triggered . | . . . . Disarmed . | . . . . Reprogrammed 6 | . 6 . . Reused 1 | . 1 . . Traps Extracted . | . . . . Installed . | . . . . Triggered 1 | . 1 . . Machines | -11 -10 -10 -10 ---------- Run | Yrd Mat Min Sub Machines Disabled 3 | . . . 3 Max in Single Turn 1 | . . . 1 Machines Repaired . | . . . . Machines Dismantled . | . . . . Machines Sabotaged . | . . . . Overloaded Fab Kills . | . . . . Hacking | -11 -10 -10 -10 --------- Run | Yrd Mat Min Sub Machines Accessed 14 | . 11 1 2 Terminals 8 | . 8 . . Fabricators . | . . . . Repair Stations 1 | . 1 . . Recycling Units 2 | . 2 . . Scanalyzers . | . . . . Garrison Access . | . . . . Total Hacks 48 | . 42 1 5 Successful 31 | . 25 1 5 Failed 16 | . 16 . . Catastrophic 3 | . 3 . . Database Lockouts 1 | . 1 . . Manual 19 | . 19 . . Terminals 30 | . 30 . . Fabricators . | . . . . Repair Stations 4 | . 4 . . Recycling Units 8 | . 8 . . Scanalyzers . | . . . . Garrison Access . | . . . . Terminal Hacks 15 | . 9 1 5 Record 4 | . . . 4 Part Schematic 1 | . 1 . . Robot Schematic 1 | . 1 . . Prototype ID Bank 1 | . 1 . . Open Door 1 | . . 1 . Terminal Index 1 | . 1 . . Locate Traps 1 | . 1 . . Reprogram Traps 2 | . 2 . . Hauler Manifests 1 | . 1 . . Registered Components 1 | . 1 . . Proto ID Catalog 1 | . . . 1 Fabricator Hacks . | . . . . Repair Station Hacks 2 | . 2 . . Scan Component 1 | . 1 . . Repair 1 | . 1 . . Recycling Unit Hacks 2 | . 2 . . Retrieve Components 2 | . 2 . . Scanalyzer . | . . . . Garrison Access Hacks . | . . . . Unauthorized Hacks 12 | . 12 . . Terminals 8 | . 8 . . Botnet 2 | . 2 . . Operators 1 | . 1 . . Skim 5 | . 5 . . Fabricators . | . . . . Repair Stations . | . . . . Recycling Units 4 | . 4 . . Monitor 1 | . 1 . . Reject 1 | . 1 . . Recyclers 1 | . 1 . . Mask 1 | . 1 . . Scanalyzers . | . . . . Garrison Access . | . . . . Data Cores Recovered . | . . . . Used . | . . . . Hacking Detections 9 | . 9 . . Full Trace Events 2 | . 2 . . Feedback Events . | . . . . Feedback Blocked . | . . . . Robot Schematics Acquired 1 | . 1 . . Robots Built . | . . . . Authchips . | . . . . Time . | . . . . Total Robot Build Rating . | . . . . Part Schematics Acquired 1 | . 1 . . Parts Built . | . . . . Authchips . | . . . . Time . | . . . . Total Part Build Rating . | . . . . Part Studies Acquired . | . . . . Parts Repaired 1 | . 1 . . Time 26 | . 26 . . Parts Recycled . | . . . . Recycled Matter . | . . . . Retrieved Matter . | . . . . Retrieved Components 11 | . 11 . . Parts Scanalyzed . | . . . . Part Schematics Acquired . | . . . . Parts Damaged . | . . . . Bothacking | -11 -10 -10 -10 ------------ Run | Yrd Mat Min Sub Used RIF Installer . | . . . . Robots Hacked . | . . . . Non-combat . | . . . . Combat . | . . . . Robot Hacks Applied . | . . . . Relay Couplers Released . | . . . . Fabnet Peak Effective % . | . . . . Robots Rewired . | . . . . Allies Hacked . | . . . . Hacks Repelled . | . . . . Allies | -11 -10 -10 -10 -------- Run | Yrd Mat Min Sub Total Allies 4 | . . 4 . Largest Group 3 | . . 3 3 Highest-Rated Group 40 | . . 40 40 Highest-Rated Ally 31 | . . 31 16 Total Orders . | . . . . Ally Attacks 39 | . . 3 36 Total Damage 442 | . . 43 399 Kills 4 | . . . 4 Allies Corrupted . | . . . . Allies Melted . | . . . . Intel | -11 -10 -10 -10 ------- Run | Yrd Mat Min Sub Active Infowar (turns) 1471 | 48 1075 348 . Seismic 1471 | 48 1075 348 . Robot Analysis Total . | . . . . Derelict Logs Recovered 5 | . . 2 3 Drone Launches . | . . . . Drone Recoveries . | . . . . Exploration | -11 -10 -10 -10 ------------- Run | Yrd Mat Min Sub Turns Passed 4461 | 124 1075 1432 1830 Spaces Moved 2675 | 84 670 797 1124 Core 8 | 8 . . . Treads . | . . . . Legs . | . . . . Wheels 2667 | 76 670 797 1124 Hover . | . . . . Flight . | . . . . Fastest Speed 50 | 50 95 140 130 Average Speed 136 | 82 122 159 133 Slowest Speed 170 | 95 140 170 170 Overloaded Moves . | . . . . Propulsion Burnouts . | . . . . Robots Hopped . | . . . . Potential Cave-ins . | . . . . Cave-ins Triggered . | . . . . Exploration Rate (%) 67 | 6 95 96 73 Regions Visited 3 Branch Regions 2 Pre-discovered Areas 5 | . 1 1 3 Known Exits Taken 1 | . 1 . . Unknown Exits Taken 2 | 1 . 1 . Scrap Searched 9 | . . 1 8 Spaces Dug 14 | . . . 14 Terrain Destroyed 20 | . . 4 16 Melee . | . . . . Projectile 6 | . . 4 2 AOE 14 | . . . 14 Terrain Rammed . | . . . . Walls Destroyed . | . . . . Machines Disabled . | . . . . Actions | -11 -10 -10 -10 --------- Run | Yrd Mat Min Sub Total 3231 | 115 829 889 1398 Wait 309 | 6 88 33 182 Move 2672 | 83 669 796 1124 Hop . | . . . . Pick Up 39 | 6 12 9 12 Fast Attach 17 | 7 2 2 6 Attach 1 | . . 1 . Detach . | . . . . Swap 17 | 1 2 6 8 Drop 37 | 1 5 8 23 Fire 139 | 11 51 34 43 Melee . | . . . . Ram . | . . . . Kick . | . . . . Crush . | . . . . Escape Stasis . | . . . . Rewire . | . . . . Trap . | . . . . Miscellaneous . | . . . . Route ------- -11/Scrapyard -10/Materials (discovered 5 exits: *Mat x3 / *Min / *Sub) -10/Mines (discovered 3 exits: *Mat x2 / *Sub) -10/Subcaves (discovered 3 exits: *Mat x2 / *Rec) History --------- Turn | Location | Event 15 | -11/Scrapyard | Discovered new exit (range 15) 125 | -11/Scrapyard | Entered Materials 145 | -10/Materials | Discovered new exit (range 12) 303 | -10/Materials | Build established: Mutant 404 | -10/Materials | Discovered new exit (range 14) 414 | -10/Materials | Central database locked down 561 | -10/Materials | Identified exit to Mines 618 | -10/Materials | Identified exit to Materials 665 | -10/Materials | Loaded intel: 5 trap records 704 | -10/Materials | Learned location of 1 exit from Recycling 732 | -10/Materials | Learned location of 2 exits from Subcaves 750 | -10/Materials | Loaded intel: 2 recycling unit locations 777 | -10/Materials | Learned Recycling recycling unit intel 804 | -10/Materials | Learned location of Mines (-9) 841 | -10/Materials | Learned Storage emergency access door positions 886 | -10/Materials | Learned 4 Recycling zone layouts 905 | -10/Materials | Repaired Lgt. Cannon 1184 | -10/Materials | Discovered new exit (range 6) 1200 | -10/Materials | Entered Mines 1203 | -10/Mines | Received a Mining Laser from a helpful Derelict 1208 | -10/Mines | Met a Derelict bent on vengeance 1225 | -10/Mines | Discovered exit to Materials (range 9) 1285 | -10/Mines | Learned 2 Materials zone layouts 1676 | -10/Mines | Learned location of Zion (-6) 1860 | -10/Mines | Discovered exit to Materials (range 5) 1874 | -10/Mines | Assisted by bots powering up and referring to "LRC-V3" 2052 | -10/Mines | A weapon hastily lodged in a ceiling crevice suddenly fell to the ground 2072 | -10/Mines | Met a Derelict shopkeep closing up shop 2604 | -10/Mines | Discovered new exit (range 10) 2632 | -10/Mines | Entered Subcaves 2632 | -10/Subcaves | Accompanied by 3 allies 2633 | -10/Subcaves | Identified exit to Recycling 2633 | -10/Subcaves | Identified exit to Materials 2891 | -10/Subcaves | Discovered exit to Materials (range 15) 3018 | -10/Subcaves | Shifting Twisted Machinery released Sub. Shrapnel Launcher 3019 | -10/Subcaves | Shifting Twisted Machinery released Battle Cannon 3302 | -10/Subcaves | Visited 4L-MR0's lab 3325 | -10/Subcaves | Found Meta Core 3431 | -10/Subcaves | Visited Clippyterm 3435 | -10/Subcaves | Learned Factory fabricator intel 3435 | -10/Subcaves | Learned Research machine intel 3543 | -10/Subcaves | Core integrity fell below 50% 3677 | -10/Subcaves | A swath of the cavern ceiling suddenly collapsed 3861 | -10/Subcaves | Build established: Scavenger-Mutant 4009 | -10/Subcaves | Learned location of Storage (-8) 4043 | -10/Subcaves | Core integrity fell below 20% 4462 | -10/Subcaves | Ambushed by angry Subdweller bent on revenge 4462 | -10/Subcaves | Destroyed by GC-NLM(R) with Subdweller Beam Cannon Last Messages --------------- 03959_ Acquired 2 matter. 03962_ Dropped Broken Sub. Monowheel. 03962_ Acquired Sub. Monowheel. 04009_ Acquired derelict log, extracted data. World map updated: -8/Storage. 04039_ 6D-CMM(R): "LEAVESUB!" 04039_ 6D-CMM(R) destroyed. 04051_ Destroyed Sub. Monowheel. 04055_ Disposable Heat Sink melted. 04055_ 58-KF7(R) destroyed. 04058_ Acquired 12 matter. 04061_ Dropped Sub. Monowheel. 04061_ Acquired Sub. Monowheel. 04073_ Dropped Sub. Machine Gun. 04074_ Acquired 10 matter. 04453_ JN-JU2(u) cries out in pain. 04453_ JN-JU2(u) destroyed. 04461_ Subatomizers dissect the Lgt. Ion Engine. 04462_ GC-NLM(R) angrily emerges from the Twisted Machinery. 04462_ GC-NLM(R): "MADSUB!" Map ----- +----------------------------------------------------+ | ???????????????????????? ???????????????????????? | | ??????????????????????? ????????????????????????? | | ?????????????????????? ##???????????????????????? | | ?????????????????????? ##??????????????????????? | | ########??????#####??# ##?????????????????????? | | ###????# ### ## ???????????????????? | | % ##???# ???????????????????? | | ##??# ???????????????????? | | ### ##?# ??????????????????? | | % ##?## ### ?????????????????????? | | ##???# #????????????????????????????? | | ##???# #????????????????????????????? | | ##??# #????????????????????????????? | | #??### #????????????????????????????? | | ##????##### ###??????????????????????????? | | ##??????#?### ###????????????????????????? | | ####?? ##??##* ##???????????????????????? | | ## #???#% #???????????????????????? | | # #??## #???????????????????????? | | # ##??# #?##????????????????????? | | ###???### ## ##???????????????????? | | ####???????# ##??????????????????? | | %####??????????# ##?????????????????? | | #?????????????# " #?????????????????? | | ###???## ?????####g """#?????????????????? | | ##??# ########## @ """##?????????????????? | | #### #### ""#??????????????????? | | ## #?# R"#??????????????????? | | #### ### ""##??????? " ????????? | | # ##??# ## ##?????#""" ????????? | | ## ##??????##"" ##????##""" " ????????? | | ??##????????##" "##"" #????##"" ?????????? | | ?????????????#" ??##" #????# """ ?????????? | | ?????????????#"????## #????# ""#?????????? | | ????????????????????# #????# #?????????? | | ????????????????????# #####?### ##????????? | | ???????????????######## # # # #????????? | | ??????????????## ?# #????????? | | ??????????????# ?# ### ### #????????? | | ???????????????# ### ####??# ##??###???? | | ????????????????# ## #??# #### #???? | | ?????????????????# #?## ##???? | | ?????????????????### # #?# ##### #???? | | ???????????????????## ### ### #??## #####? | | ???????????????######% ###?# ## ##??# # #? | | ???????????????# #???# #???## #? | | ???????????????# ! ##### #???# # #? | | ???????????????# =%! !%!##" ######### # #? | | ???????????????# [ ! =% #???# # ## ## | | ?????????? % # = #???# # ## # | +----------------------------------------------------+ Best States ------------- Heat Dissipation 39 Energy Generation 18 Energy Capacity 200 Matter Stores 300 Matter Capacity 300 Sight Range 16 Terrain Scan Density 10 Armor Coverage 150 Evasion (%) 44 Recoil Reduction 1 Item Schematics ----------------- Huge Storage Unit | -10/Materials | Hacked Robot Schematics ------------------ M-13 Machinist | -10/Materials | Hacked Fabricated ------------ Nothing Repaired ---------- Lgt. Cannon | 55% | -10/Materials Studied --------- None Alien Tech Used ----------------- None Achievements -------------- None Challenges ------------ None Game ------ Seed ThermoelectricAlphaPick Manual? 0 Play Time 00:29:51 Cumulative 1100.6 hours Start 2025.11.24 @ 20:52:05 End 2025.11.24 @ 21:19:46 Sessions 1 Manual Loads 0 Difficulty Rogue Special Mode None Game No. 391 Rogue 386 Adventurer 4 Explorer 1 Win Type - Total 23 Types 13/3/1/2/0/1/0/0/2/1 Lore% 96 Gallery% 95 Achievement% 81 Wizard Run 0 Options --------- Layout 0 ASCII 0 Keyboard 0 Movement Numpad Keybinds 0 Fullscreen 2 Font 18/SmallcapsGlow Map View 76x50 Zoom Use 0% Tactical HUD 1 Map Filters NONE Filters NONE Steam 1 RUN: 4a7351d5-38ca-4e52-ae6b-e036f739b6ec